fUST/lending_fUST_20250802
["ID","MTS","AMOUNT","RATE_DAILY","PERIOD"]
[376874362,1754148665842,-656.012601,0.00026849,7]
[376874363,1754148665851,-2790.36,0.00026849,10]
[376874364,1754148665861,-656.012601,0.00026849,7]
[376874365,1754148665870,-460.0,0.00026849,10]
[376874366,1754148665879,-656.012601,0.00026849,7]
[376874367,1754148665889,-460.0,0.00026849,10]
[376874368,1754148665898,-2790.36,0.00026849,10]
[376874369,1754148665907,-460.0,0.00026849,10]
[376874370,1754148665917,-460.0,0.00026849,10]
[376874371,1754148665926,-2790.36,0.00026849,10]
[376874372,1754148665936,-460.0,0.00026849,10]
[376874373,1754148665946,-460.0,0.00026849,10]
[376874374,1754148665955,-2790.41727181,0.00026849,10]
[376874375,1754148665965,-337.69893593,0.00026849,10]
[376874376,1754148665975,-460.0,0.00026849,10]
[376874377,1754148665984,-505.42577883,0.00026849,10]
[376874378,1754148665994,-460.0,0.00026849,10]
[376874379,1754148666003,-460.0,0.00026849,10]
[376874380,1754148666012,-460.0,0.00026849,10]
[376874381,1754148666022,-460.0,0.00026849,10]
[376874382,1754148666031,-460.0,0.00026849,10]
[376874383,1754148666040,-515.7453679,0.00026849,10]
[376874384,1754148666049,-393.25402517,0.00026849,10]
[376874385,1754148666059,-460.0,0.00026849,10]
[376874386,1754148666069,-460.0,0.00026849,10]
[376874387,1754148666079,-460.0,0.00026849,10]
[376874388,1754148666090,-460.0,0.00026849,10]
[376874389,1754148666099,-460.0,0.00026849,10]
[376874390,1754148666109,-460.0,0.00026849,10]
[376874391,1754148666119,-460.0,0.00026849,10]
[376874392,1754148666128,-460.0,0.00026849,10]
[376874393,1754148666138,-460.0,0.00026849,10]
[376874394,1754148666147,-460.0,0.00026849,10]
[376874395,1754148666157,-462.6074163,0.00026849,10]
[376874396,1754148666166,-460.0,0.00026849,10]
[376874397,1754148666175,-460.0,0.00026849,10]
[376874398,1754148666185,-460.0,0.00026849,10]
[376874399,1754148666194,-460.0,0.00026849,10]
[376874400,1754148666204,-102.61301507,0.00026849,10]
[376874401,1754148666627,-500.0,0.00024607,2]
[376874402,1754148666637,-500.0,0.00024607,2]
[376874403,1754148666646,-1182.25501822,0.00024607,2]
[376874404,1754148666655,-1182.25501822,0.00024607,2]
[376874405,1754148666665,-500.0,0.00024607,2]
[376874406,1754148666675,-1182.25501822,0.00024607,2]
[376874407,1754148666685,-500.0,0.00024607,2]
[376874408,1754148666695,-1182.25501822,0.00024607,2]
[376874409,1754148666705,-500.0,0.00024607,2]
[376874410,1754148666714,-1182.25501822,0.00024607,2]
[376874411,1754148666724,-500.0,0.00024607,2]
[376874412,1754148666733,-1182.25501822,0.00024607,2]
[376874413,1754148666743,-500.0,0.00024607,2]
[376874414,1754148666752,-1182.25501822,0.00024607,2]
[376874415,1754148666761,-500.0,0.00024607,2]
[376874416,1754148666770,-500.0,0.00024607,2]
[376874417,1754148666779,-500.0,0.00024607,2]
[376874418,1754148666790,-1182.25501822,0.00024607,2]
[376874419,1754148666800,-500.0,0.00024607,2]
[376874420,1754148666809,-1182.25501822,0.00024607,2]
[376874421,1754148666819,-500.0,0.00024607,2]
[376874422,1754148666828,-1182.25501822,0.00024607,2]
[376874423,1754148666839,-500.0,0.00024607,2]
[376874424,1754148666849,-1182.25501822,0.00024607,2]
[376874425,1754148666859,-500.0,0.00024607,2]
[376874426,1754148666966,-254.40630465,0.00024607,2]
[376874427,1754148666979,-927.84871357,0.00024607,2]
[376874428,1754148666988,-203.79200443,0.00024607,2]
[376874429,1754148667000,-296.20799557,0.00024607,2]
[376874430,1754148667010,-1173.07424877,0.00024607,2]
[376874431,1754148667023,-9.18076945,0.00024607,2]
[376874432,1754148667032,-384.16441962,0.00024607,2]
[376874433,1754148667041,-1182.25501822,0.00024607,2]
[376874434,1754148667051,-500.0,0.00024607,2]
[376874435,1754148667061,-1182.25501822,0.00024607,2]
[376874436,1754148667070,-500.0,0.00024607,2]
[376874437,1754148667079,-1065.17213974,0.00024607,2]
[376874438,1754148667093,-117.08287848,0.00024607,2]
[376874439,1754148667103,-649.37652156,0.00024607,2]
[376874440,1754148667226,-358.52255495,0.0002425,2]
[376874441,1754148667236,-16995.99448327,0.00024573,2]
[376874442,1754148667246,-532.87849666,0.00024607,2]
[376874443,1754148667256,-500.0,0.00024607,2]
[376874444,1754148667265,-1182.25501822,0.00024607,2]
[376874445,1754148667275,-500.0,0.00024607,2]
[376874446,1754148667287,-1182.25501822,0.00024607,2]
[376874447,1754148667297,-1182.25501822,0.00024607,2]
[376874448,1754148667306,-1182.25501822,0.00024607,2]
[376874449,1754148667316,-1182.25501822,0.00024607,2]
[376874450,1754148667326,-1182.25501822,0.00024607,2]
[376874451,1754148667335,-1182.25501822,0.00024607,2]
[376874452,1754148667347,-1182.25501822,0.00024607,2]
[376874453,1754148667357,-1182.25501822,0.00024607,2]
[376874454,1754148667367,-1182.25501822,0.00024607,2]
[376874455,1754148667376,-1182.25501822,0.00024607,2]
[376874456,1754148667386,-1182.25501822,0.00024607,2]
[376874457,1754148667396,-1182.25501822,0.00024607,2]
[376874458,1754148667405,-1182.25501822,0.00024607,2]
[376874459,1754148667415,-1182.25501822,0.00024607,2]
[376874460,1754148667424,-1182.25501822,0.00024607,2]
[376874461,1754148667433,-1182.25501822,0.00024607,2]
[376874462,1754148667443,-1182.25501822,0.00024607,2]
[376874463,1754148667453,-1182.25501822,0.00024607,2]
[376874464,1754148667462,-1182.25501822,0.00024607,2]
[376874465,1754148667471,-1182.25501822,0.00024607,2]
[376874466,1754148667480,-1182.25501822,0.00024607,2]
[376874467,1754148667489,-1182.25501822,0.00024607,2]
[376874468,1754148667498,-1182.25501822,0.00024607,2]
[376874469,1754148667508,-2147.0,0.00026418,2]
[376874470,1754148667518,-357.38698493,0.00026849,10]
[376874471,1754148667527,-460.0,0.00026849,10]
[376874472,1754148667537,-460.0,0.00026849,10]
[376874473,1754148667546,-460.0,0.00026849,10]
[376874474,1754148667556,-460.0,0.00026849,10]
[376874475,1754148667565,-460.75764104,0.00026849,10]
[376874476,1754148667574,-463.471681,0.00026849,10]
[376874477,1754148667584,-460.0,0.00026849,10]
[376874478,1754148667595,-460.0,0.00026849,10]
[376874479,1754148667604,-460.0,0.00026849,10]
[376874480,1754148667613,-460.0,0.00026849,10]
[376874481,1754148667623,-460.0,0.00026849,10]
[376874482,1754148667632,-460.0,0.00026849,10]
[376874483,1754148667642,-460.0,0.00026849,10]
[376874484,1754148667650,-460.0,0.00026849,10]
[376874485,1754148667659,-468.24332423,0.00026849,10]
[376874486,1754148667669,-460.0,0.00026849,10]
[376874487,1754148667678,-460.0,0.00026849,10]
[376874488,1754148667688,-566.37487365,0.00026849,10]
[376874489,1754148667700,-460.0,0.00026849,10]
[376874490,1754148667709,-460.0,0.00026849,10]
[376874491,1754148667718,-460.0,0.00026849,10]
[376874492,1754148667727,-460.0,0.00026849,10]
[376874493,1754148667736,-474.44327687,0.00026849,10]
[376874494,1754148667746,-460.0,0.00026849,10]
[376874495,1754148667755,-460.0,0.00026849,10]
[376874496,1754148667765,-460.0,0.00026849,10]
[376874497,1754148667775,-460.0,0.00026849,10]
[376874498,1754148667785,-460.0,0.00026849,10]
[376874499,1754148667794,-460.0,0.00026849,10]
[376874500,1754148667803,-460.0,0.00026849,10]
[376874501,1754148667813,-460.0,0.00026849,10]
[376874502,1754148667822,-460.0,0.00026849,10]
[376874503,1754148667834,-460.0,0.00026849,10]
[376874504,1754148667845,-460.0,0.00026849,10]
[376874505,1754148667854,-460.0,0.00026849,10]
[376874506,1754148667864,-460.0,0.00026849,10]
[376874507,1754148667873,-460.0,0.00026849,10]
[376874508,1754148667882,-407.91669041,0.00026849,10]
[376874509,1754148667899,-61.50681684,0.00026849,10]
[376874510,1754148667910,-460.0,0.00026849,10]
[376874511,1754148667919,-460.0,0.00026849,10]
[376874512,1754148667928,-460.0,0.00026849,10]
[376874513,1754148667937,-460.0,0.00026849,10]
[376874514,1754148667947,-460.0,0.00026849,10]
[376874515,1754148667957,-460.0,0.00026849,10]
[376874516,1754148667966,-460.0,0.00026849,10]
[376874517,1754148667976,-460.0,0.00026849,10]
[376874518,1754148667985,-460.0,0.00026849,10]
[376874519,1754148667995,-460.0,0.00026849,10]
[376874520,1754148668004,-460.0,0.00026849,10]
[376874521,1754148668013,-460.0,0.00026849,10]
[376874522,1754148668023,-460.0,0.00026849,10]
[376874523,1754148668032,-460.0,0.00026849,10]
[376874524,1754148668042,-170.82,0.00026849,10]
[376874525,1754148668051,-460.0,0.00026849,10]
[376874526,1754148668060,-460.0,0.00026849,10]
[376874527,1754148668069,-460.0,0.00026849,10]
[376874528,1754148668078,-460.0,0.00026849,10]
[376874529,1754148668090,-460.0,0.00026849,10]
[376874530,1754148668100,-460.0,0.00026849,10]
[376874531,1754148668110,-460.0,0.00026849,10]
[376874532,1754148668119,-467.99340113,0.00026849,10]
[376874533,1754148668129,-151.0,0.00026849,7]
[376874534,1754148668138,-594.54946752,0.00026849,10]
[376874535,1754148668148,-151.0,0.00026849,7]
[376874536,1754148668157,-151.0,0.00026849,7]
[376874537,1754148668167,-151.0,0.00026849,7]
[376874538,1754148668177,-151.0,0.00026849,7]
[376874539,1754148668186,-151.0,0.00026849,7]
[376874540,1754148668195,-460.0,0.00026849,10]
[376874541,1754148668205,-151.0,0.00026849,7]
[376874542,1754148668216,-460.0,0.00026849,10]
[376874543,1754148668225,-461.34808089,0.00026849,10]
[376874544,1754148668234,-460.83514531,0.00026849,10]
[376874545,1754148668244,-460.0,0.00026849,10]
[376874546,1754148668254,-251.64256402,0.00026849,10]
[376874547,1754148668263,-465.71398134,0.00026849,10]
[376874548,1754148668272,-460.0,0.00026849,5]
[376874549,1754148668286,-460.81,0.00026849,10]
[376874550,1754148668295,-464.58447462,0.00026849,5]
[376874551,1754148668304,-460.81,0.00026849,10]
[376874552,1754148668313,-460.81,0.00026849,10]
[376874553,1754148668323,-500.0,0.00026849,10]
[376874554,1754148668332,-500.0,0.00026849,10]
[376874555,1754148668344,-500.0,0.00026849,10]
[376874556,1754148668353,-460.0,0.00026849,10]
[376874557,1754148668363,-500.0,0.00026849,10]
[376874558,1754148668372,-460.0,0.00026849,10]
[376874559,1754148668381,-460.81,0.00026849,10]
[376874560,1754148668390,-500.0,0.00026849,10]
[376874561,1754148668399,-460.0,0.00026849,10]
[376874562,1754148668408,-500.0,0.00026849,10]
[376874563,1754148668417,-460.0,0.00026849,10]
[376874564,1754148668437,-500.0,0.00026849,10]
[376874565,1754148668447,-460.0,0.00026849,10]
[376874566,1754148668456,-500.0,0.00026849,10]
[376874567,1754148668466,-460.0,0.00026849,10]
[376874568,1754148668475,-460.81,0.00026849,10]
[376874569,1754148668484,-460.0,0.00026849,10]
[376874570,1754148668503,-500.0,0.00026849,10]
[376874571,1754148668516,-460.0,0.00026849,10]
[376874572,1754148668525,-460.0,0.00026849,10]
[376874573,1754148668618,-500.0,0.00026849,10]
[376874574,1754148668628,-460.0,0.00026849,10]
[376874575,1754148668637,-500.0,0.00026849,10]
[376874576,1754148668647,-460.0,0.00026849,10]
[376874577,1754148668655,-500.0,0.00026849,10]
[376874578,1754148668664,-460.81,0.00026849,10]
[376874579,1754148668674,-460.0,0.00026849,10]
[376874580,1754148668683,-500.0,0.00026849,10]
[376874581,1754148668693,-460.0,0.00026849,10]
[376874582,1754148668703,-460.0,0.00026849,10]
[376874583,1754148668713,-460.81,0.00026849,10]
[376874584,1754148668722,-500.0,0.00026849,10]
[376874585,1754148668731,-460.0,0.00026849,10]
[376874586,1754148668740,-307.13115317,0.00026849,10]
[376874587,1754148668749,-500.0,0.00026849,10]
[376874588,1754148668758,-460.0,0.00026849,10]
[376874589,1754148668767,-500.0,0.00026849,10]
[376874590,1754148668776,-460.81,0.00026849,10]
[376874591,1754148668785,-460.0,0.00026849,10]
[376874592,1754148668795,-500.0,0.00026849,10]
[376874593,1754148668804,-460.0,0.00026849,10]
[376874594,1754148668814,-460.0,0.00026849,10]
[376874595,1754148668823,-460.81,0.00026849,10]
[376874596,1754148668832,-500.0,0.00026849,10]
[376874597,1754148668843,-460.0,0.00026849,10]
[376874598,1754148668852,-460.0,0.00026849,10]
[376874599,1754148668861,-500.0,0.00026849,10]
[376874600,1754148668871,-460.0,0.00026849,10]
[376874601,1754148668880,-500.0,0.00026849,10]
[376874602,1754148668890,-460.81,0.00026849,10]
[376874603,1754148668899,-460.0,0.00026849,10]
[376874604,1754148668908,-500.0,0.00026849,10]
[376874605,1754148668917,-460.0,0.00026849,10]
[376874606,1754148668927,-176.0,0.00026849,10]
[376874607,1754148668936,-460.81,0.00026849,10]
[376874608,1754148668945,-460.0,0.00026849,10]
[376874609,1754148668955,-460.0,0.00026849,10]
[376874610,1754148668964,-460.81,0.00026849,10]
[376874611,1754148668973,-460.0,0.00026849,10]
[376874612,1754148668983,-460.0,0.00026849,10]
[376874613,1754148668993,-460.0,0.00026849,10]
[376874614,1754148669002,-460.0,0.00026849,10]
[376874615,1754148669011,-460.0,0.00026849,10]
[376874616,1754148669020,-460.0,0.00026849,10]
[376874617,1754148669029,-460.0,0.00026849,10]
[376874618,1754148669039,-460.81,0.00026849,10]
[376874619,1754148669049,-460.0,0.00026849,10]
[376874620,1754148669058,-460.0,0.00026849,10]
[376874621,1754148669067,-460.0,0.00026849,10]
[376874622,1754148669077,-538.94,0.00026849,10]
[376874623,1754148669086,-460.0,0.00026849,7]
[376874624,1754148669097,-460.0,0.00026849,7]
[376874625,1754148669107,-460.81,0.00026849,10]
[376874626,1754148669116,-460.81,0.00026849,10]
[376874627,1754148669126,-460.81,0.00026849,10]
[376874628,1754148669135,-460.0,0.00026849,10]
[376874629,1754148669144,-460.81,0.00026849,10]
[376874630,1754148669154,-460.0,0.00026849,10]
[376874631,1754148669163,-460.81,0.00026849,10]
[376874632,1754148669172,-460.81,0.00026849,10]
[376874633,1754148669182,-460.81,0.00026849,10]
[376874634,1754148669191,-460.81,0.00026849,10]
[376874635,1754148669200,-460.0,0.00026849,10]
[376874636,1754148669210,-460.0,0.00026849,10]
[376874637,1754148669219,-94.75383303,0.00026849,10]
[376874638,1754148673639,150.0,0.0002306,2]
[376874642,1754148795012,1500.0,0.00020507,2]
[376874643,1754148798769,1500.0,0.00021603,2]
[376874644,1754148802401,1500.0,0.00022699,2]
[376874650,1754149155032,10000.0,0.00027639,30]
[376874652,1754149187931,1100.0,0.00022159,2]
[376874656,1754149244637,778.36,0.00027397,120]
[376874661,1754149397486,502.30031673,0.0002306,2]
[376874663,1754149433405,165.139328,0.00013699,2]
[376874664,1754149433808,165.139328,0.00021404,2]
[376874666,1754149491943,288.08617732,0.0002306,2]
[376874667,1754149501850,-1100.0,0.00023255,2]
[376874668,1754149501873,-203.46652824,0.00023345,2]
[376874669,1754149501894,-1200.0,0.00023445,2]
[376874670,1754149501916,-5618.53347176,0.00023446,2]
[376874680,1754149537946,-203.46652823,0.00023345,2]
[376874681,1754149537966,-300.0,0.00023445,2]
[376874682,1754149537987,-300.0,0.00023445,2]
[376874683,1754149538009,-400.52739097,0.00023445,2]
[376874684,1754149583162,800.0,0.00022159,2]
[376874685,1754149583619,1047.93,0.0002306,2]
[376874686,1754149603133,-201.88034241,0.00023255,2]
[376874687,1754149627446,586.32243285,0.00022977,10]
[376874689,1754149652078,-575.89134563,0.00023111,2]
[376874691,1754149679545,2100.0,0.0002306,2]
[376874692,1754149711745,122.73405411,0.00022818,2]
[376874693,1754149711772,75.73128089,0.00022818,2]
[376874710,1754149833237,-199.29801473,0.00023065,2]
[376874711,1754149833247,-90.10865437,0.00023111,2]
[376874712,1754149833257,-598.11965759,0.00023255,2]
[376874713,1754149833267,-247.203,0.00023445,3]
[376874714,1754149833404,-300.0,0.00023445,2]
[376874715,1754149833490,-1200.0,0.00023445,2]
[376874716,1754149833500,-2477.23505849,0.00023446,2]
[376874720,1754149839209,-16804.23146975,0.00023446,2]
[376874721,1754149839219,-192.05745155,0.00023446,2]
[376874723,1754149839228,-236.59483884,0.000236,2]
[376874725,1754149839237,-437.24800759,0.00023914,2]
[376874727,1754149839246,-200.0,0.00023914,15]
[376874728,1754149839256,-200.0,0.00023914,15]
[376874730,1754149839265,-200.0,0.00023914,15]
[376874732,1754149839274,-200.0,0.00023914,15]
[376874733,1754149839283,-200.0,0.00023914,15]
[376874735,1754149839294,-800.0,0.00024351,2]
[376874737,1754149839303,-268.89191623,0.00024352,2]
[376874739,1754149839312,-942.2989947,0.00024385,2]
[376874740,1754149839321,-4177.29804059,0.00024408,3]
[376874741,1754149839331,-11330.66298884,0.00024452,2]
[376874742,1754149839340,-151.0,0.00024493,2]
[376874743,1754149839348,-286.34824659,0.00024493,2]
[376874744,1754149839358,-7610.44,0.00024506,2]
[376874745,1754149839367,-500.0,0.00024507,2]
[376874746,1754149839376,-218.38092351,0.00024507,2]
[376874748,1754149839385,-193.65222882,0.00024507,2]
[376874750,1754149839394,-546.01181315,0.00024507,2]
[376874752,1754149839404,-500.0,0.00024507,2]
[376874753,1754149839414,-546.01181315,0.00024507,2]
[376874754,1754149839424,-438.41644196,0.00024507,2]
[376874755,1754149839433,-546.01181315,0.00024507,2]
[376874756,1754149839442,-365.68284218,0.00024507,2]
[376874757,1754149839452,-546.01181315,0.00024507,2]
[376874758,1754149839461,-546.01181315,0.00024507,2]
[376874759,1754149839471,-546.01181315,0.00024507,2]
[376874760,1754149839481,-546.01181315,0.00024507,2]
[376874761,1754149839490,-546.01181315,0.00024507,2]
[376874762,1754149839501,-546.01181315,0.00024507,2]
[376874763,1754149839510,-546.01181315,0.00024507,2]
[376874764,1754149839520,-546.01181315,0.00024507,2]
[376874765,1754149839529,-546.01181315,0.00024507,2]
[376874766,1754149839540,-546.01181315,0.00024507,2]
[376874767,1754149839553,-546.01181315,0.00024507,2]
[376874768,1754149839562,-546.01181315,0.00024507,2]
[376874769,1754149839572,-546.01181315,0.00024507,2]
[376874770,1754149839582,-546.01181315,0.00024507,2]
[376874771,1754149839591,-546.01181315,0.00024507,2]
[376874772,1754149839600,-546.01181315,0.00024507,2]
[376874773,1754149839609,-546.01181315,0.00024507,2]
[376874774,1754149839627,-546.01181315,0.00024507,2]
[376874775,1754149839642,-546.01181315,0.00024507,2]
[376874776,1754149839656,-546.01181315,0.00024507,2]
[376874777,1754149839668,-546.01181315,0.00024507,2]
[376874778,1754149839679,-546.01181315,0.00024507,2]
[376874779,1754149839692,-546.01181315,0.00024507,2]
[376874780,1754149839707,-546.01181315,0.00024507,2]
[376874781,1754149839719,-546.01181315,0.00024507,2]
[376874782,1754149839733,-546.01181315,0.00024507,2]
[376874783,1754149839747,-546.01181315,0.00024507,2]
[376874784,1754149839760,-546.01181315,0.00024507,2]
[376874785,1754149839773,-546.01181315,0.00024507,2]
[376874786,1754149839787,-546.01181315,0.00024507,2]
[376874787,1754149839801,-546.01181315,0.00024507,2]
[376874788,1754149839813,-546.01181315,0.00024507,2]
[376874789,1754149839824,-546.01181315,0.00024507,2]
[376874790,1754149839838,-546.01181315,0.00024507,2]
[376874791,1754149839851,-546.01181315,0.00024507,2]
[376874792,1754149839863,-546.01181315,0.00024507,2]
[376874793,1754149839877,-546.01181315,0.00024507,2]
[376874794,1754149839889,-546.01181315,0.00024507,2]
[376874795,1754149839901,-546.01181315,0.00024507,2]
[376874796,1754149839911,-546.01181315,0.00024507,2]
[376874797,1754149839922,-546.01181315,0.00024507,2]
[376874798,1754149839934,-672.61316955,0.00024507,2]
[376874799,1754149839945,-672.61316955,0.00024507,2]
[376874800,1754149839957,-672.61316955,0.00024507,2]
[376874801,1754149839970,-672.61316955,0.00024507,2]
[376874802,1754149839983,-672.61316955,0.00024507,2]
[376874803,1754149839996,-672.61316955,0.00024507,2]
[376874804,1754149840009,-672.61316955,0.00024507,2]
[376874805,1754149840022,-672.61316955,0.00024507,2]
[376874806,1754149840037,-672.61316955,0.00024507,2]
[376874807,1754149840051,-672.61316955,0.00024507,2]
[376874808,1754149840062,-672.61316955,0.00024507,2]
[376874809,1754149840072,-672.61316955,0.00024507,2]
[376874810,1754149840083,-672.61316955,0.00024507,2]
[376874811,1754149840093,-672.61316955,0.00024507,2]
[376874812,1754149840106,-672.61316955,0.00024507,2]
[376874813,1754149840121,-672.61316955,0.00024507,2]
[376874814,1754149840133,-672.61316955,0.00024507,2]
[376874815,1754149840145,-672.61316955,0.00024507,2]
[376874816,1754149840156,-672.61316955,0.00024507,2]
[376874817,1754149840168,-672.61316955,0.00024507,2]
[376874818,1754149840179,-672.61316955,0.00024507,2]
[376874819,1754149840192,-672.61316955,0.00024507,2]
[376874820,1754149840204,-672.61316955,0.00024507,2]
[376874821,1754149840214,-672.61316955,0.00024507,2]
[376874822,1754149840225,-672.61316955,0.00024507,2]
[376874823,1754149840238,-672.61316955,0.00024507,2]
[376874824,1754149840249,-672.61316955,0.00024507,2]
[376874825,1754149840260,-672.61316955,0.00024507,2]
[376874826,1754149840272,-672.61316955,0.00024507,2]
[376874827,1754149840288,-672.61316955,0.00024507,2]
[376874828,1754149840300,-672.61316955,0.00024507,2]
[376874829,1754149840311,-672.61316955,0.00024507,2]
[376874830,1754149840323,-672.61316955,0.00024507,2]
[376874831,1754149840334,-660.38383918,0.00024507,2]
[376874832,1754149840351,-660.38383918,0.00024507,2]
[376874833,1754149840364,-660.38383918,0.00024507,2]
[376874834,1754149840376,-660.38383918,0.00024507,2]
[376874835,1754149840388,-660.38383918,0.00024507,2]
[376874836,1754149840399,-660.38383918,0.00024507,2]
[376874837,1754149840410,-660.38383918,0.00024507,2]
[376874838,1754149840421,-660.38383918,0.00024507,2]
[376874839,1754149840434,-660.38383918,0.00024507,2]
[376874841,1754149840445,-660.38383918,0.00024507,2]
[376874842,1754149840457,-660.38383915,0.00024507,2]
[376874843,1754149840468,-212.39316724,0.00024507,2]
[376874844,1754149840484,-500.0,0.00024507,2]
[376874845,1754149840501,-370000.0,0.00024508,2]
[376874846,1754149840512,-161.38570565,0.00024573,2]
[376874847,1754149840524,-500.0,0.00024573,2]
[376874848,1754149840536,-500.0,0.00024573,2]
[376874849,1754149840547,-503.14242823,0.00024573,2]
[376874850,1754149840559,-500.0,0.00024573,2]
[376874851,1754149840570,-500.26382855,0.00024573,2]
[376874853,1754149840582,-500.0,0.00024573,2]
[376874855,1754149840593,-500.0,0.00024573,2]
[376874858,1754149840604,-500.0,0.00024573,2]
[376874860,1754149840615,-500.0,0.00024573,2]
[376874862,1754149840626,-1415.49,0.000246,7]
[376874864,1754149840637,-231.57249719,0.00024604,2]
[376874866,1754149840648,-1000.0,0.00024612,2]
[376874868,1754149840660,-1000.0,0.00024612,2]
[376874871,1754149840671,-768.7,0.00024612,2]
[376874873,1754149840682,-150.0,0.00024614,2]
[376874875,1754149840693,-14981.5753318,0.000248,2]
[376874877,1754149840704,-268.89191621,0.00024808,2]
[376874879,1754149840716,-500.0,0.00024873,2]
[376874881,1754149840727,-500.0,0.00024873,2]
[376874883,1754149840739,-325.0,0.00024875,3]
[376874886,1754149840754,-109287.58912808,0.000249,2]
[376874888,1754149840769,-2173.0914702,0.000249,2]
[376874890,1754149840783,-2582.09977059,0.000249,2]
[376874893,1754149840798,-340.33665628,0.000249,2]
[376875461,1754149846903,-2429.69999999,0.000249,2]
[376875463,1754149846915,-324.24623458,0.000249,2]
[376875468,1754149846927,-17007.25729928,0.000249,2]
[376875470,1754149846936,-178.27,0.00024907,7]
[376875472,1754149846945,-178.27,0.00025007,7]
[376875474,1754149846955,-249.8,0.00025076,6]
[376875476,1754149846964,-178.28389945,0.00025107,7]
[376875477,1754149846973,-4462.89524645,0.00025195,2]
[376875480,1754149846989,-12305.14482345,0.00025195,2]
[376875482,1754149846998,-1872.69691647,0.00025195,2]
[376875484,1754149847008,-153.0,0.00025205,2]
[376875486,1754149847017,-306.0,0.00025205,2]
[376875488,1754149847027,-1157.1921196,0.00025205,2]
[376875490,1754149847037,-153.0,0.00025205,2]
[376875492,1754149847046,-268.89191621,0.00025264,2]
[376875494,1754149847055,-249.8,0.00025292,6]
[376875496,1754149847065,-1000.0,0.00025421,2]
[376875498,1754149847074,-1000.0,0.00025421,2]
[376875500,1754149847084,-240.0,0.00025439,2]
[376875502,1754149847095,-800.0,0.00025447,2]
[376875504,1754149847106,-500.0,0.00025452,2]
[376875506,1754149847115,-500.0,0.00025489,2]
[376875508,1754149847124,-249.8,0.00025509,6]
[376875510,1754149847133,-1940.19385396,0.00025536,2]
[376875512,1754149847142,-664.21075775,0.00025536,2]
[376875515,1754149847152,-208.8735447,0.00025539,2]
[376875517,1754149847161,-1680.0,0.00025556,2]
[376875520,1754149847170,-500.0,0.00025557,2]
[376875523,1754149847179,-500.0,0.00025591,2]
[376875526,1754149847188,-11330.66298884,0.00025601,2]
[376875529,1754149847197,-500.0,0.00025678,2]
[376875532,1754149847206,-268.89191621,0.0002572,2]
[376875535,1754149847215,-249.8,0.00025725,6]
[376875538,1754149847225,-500.0,0.00025781,2]
[376875541,1754149847233,-7610.44,0.00025876,4]
[376875544,1754149847243,-249.8,0.00025941,6]
[376875547,1754149847252,-1500.0,0.00025968,2]
[376875550,1754149847261,-509.14387867,0.00025968,2]
[376875553,1754149847270,-500.0,0.00025972,2]
[376875556,1754149847280,-500.0,0.00025984,2]
[376875559,1754149847290,-500.0,0.00025999,2]
[376875562,1754149847300,-460.0,0.00026,2]
[376875565,1754149847309,-500.0,0.00026018,2]
[376875568,1754149847319,-1217.2132064,0.00026043,2]
[376875571,1754149847328,-500.0,0.00026069,2]
[376875574,1754149847337,-500.0,0.00026092,2]
[376875577,1754149847346,-249.8,0.00026157,6]
[376875580,1754149847355,-268.89191621,0.00026176,2]
[376875582,1754149847364,-500.0,0.00026189,2]
[376875584,1754149847373,-160.12652983,0.00026219,2]
[376875586,1754149847382,-200.0,0.00026237,15]